Cogmind - Beta 14 X2 @@@ ROGUE MODE // 2024.08.05 @ 17:03:37 Player: Decinym Result: Self-destructed Performance ------------- Evolutions (1) 500 Regions Visited (5) 1000 Robots Destroyed (28) 140 Value Destroyed (700) 700 Prototype IDs (25) 500 Alien Tech Used (0) 0 Bonus (476) 476 TOTAL SCORE: 3316 Bonus ------- High Alert Combat Kills 8 Follower Combat Kills 168 Aligned with FarCom 300 Cogmind --------- Core Integrity 250/400 Matter 199/300 Energy 100/100 System Corruption 1% Temperature Cool (0) Movement Core (700) Ox13 Location -9/Exiles Parts ------- > --- POWER (1) -------- (None) > --- PROPULSION (3) --- (None) > --- UTILITY (3) ------ High-capacity Storage Unit > --- WEAPON (2) ------- (None) > --- INVENTORY (20) --- Heavy Ion Engine Heavy Ion Engine Advanced Myomer Leg Experimental Heat Sink Hardened Light Armor Plating Sensor Drone Bay (20/20) Rocket Launcher Peak State ------------ > --- POWER ------------ Heavy Ion Engine > --- PROPULSION ------- Armored Wheel Armored Wheel Armored Wheel > --- UTILITY ---------- Improved Heat Sink High-capacity Storage Unit Hardened Light Armor Plating > --- WEAPON ----------- Autogun Autogun > --- INVENTORY -------- Heavy Ion Engine Heavy Ion Engine Nuclear Core Fission Core Fission Core Light Treads Light Treads Light Treads Light Treads Hardened Light Armor Plating Hardened Light Armor Plating Hardened Light Armor Plating Sensor Drone Bay Autogun Rocket Launcher Blade Trap Blade Trap Blade Trap [Rating: 23] Favorites ----------- Power Heavy Ion Engine Engine Heavy Ion Engine Propulsion Armored Wheel Treads Light Treads Leg Aluminum Leg Wheel Armored Wheel Utility Hardened Light Armor Plating Device Improved Heat Sink Storage Large Storage Unit Processor Targeting Computer Protection Hardened Light Armor Plating Weapon Autogun Energy Gun Small Laser Ballistic Gun Autogun Launcher Rocket Launcher Build | -11 -10 -10 -9 -9 -9 ------- Run | Yrd Mat Min Mat Min Exi Slots Evolved 2 | . . . 2 . . Power . | . . . . . . Propulsion 1 | . . . 1 . . Utility 1 | . . . 1 . . Weapon . | . . . . . . Parts Attached 41 | . 10 6 6 . 19 Power 3 | . 1 1 1 . . Engine 3 | . 1 1 1 . . Core . | . . . . . . Reactor . | . . . . . . Propulsion 19 | . 2 2 2 . 13 Treads 10 | . 2 . 1 . 7 Leg . | . . . . . . Wheel 9 | . . 2 1 . 6 Hover . | . . . . . . Flight . | . . . . . . Utility 11 | . 3 2 3 . 3 Device 2 | . . 1 1 . . Storage 2 | . 1 . . . 1 Processor 2 | . 1 . 1 . . Hackware . | . . . . . . Protection 5 | . 1 1 1 . 2 Artifact . | . . . . . . Weapon 8 | . 4 1 . . 3 Energy Gun . | . . . . . . Energy Cannon . | . . . . . . Ballistic Gun 7 | . 4 1 . . 2 Ballistic Cannon . | . . . . . . Launcher 1 | . . . . . 1 Special Weapon . | . . . . . . Impact Weapon . | . . . . . . Slashing Weapon . | . . . . . . Piercing Weapon . | . . . . . . Special Melee Weapon . | . . . . . . Unidentified Prototypes 2 | . . 1 1 . . Parts Lost 16 | . 2 . . . 14 Power 1 | . . . . . 1 Propulsion 8 | . 1 . . . 7 Utility 4 | . 1 . . . 3 Weapon 3 | . . . . . 3 Highest Loss Streak 11 | . 2 . . . 11 To Critical Strikes 6 | . . . . . 6 Average Slot Usage (%) 97 | . 98 100 99 100 95 Engine 12 | . 14 14 11 11 10 Treads 9 | . 10 . . . 15 Leg 4 | . 17 . . . . Wheel 17 | . . 27 33 33 16 Device 5 | . . . 1 11 10 Storage 12 | . 14 14 11 11 11 Processor 2 | . 7 . 7 . . Protection 10 | . 4 13 12 11 10 Ballistic Gun 22 | . 25 28 22 22 19 Naked Turns . | . . . . . . Heaviest Build 61 | 12 41 41 46 40 61 Greatest Support 60 | 20 40 24 36 36 60 Greatest Overweight (x) 3 | . 1 1 1 1 3 Average Overweight (x) . | . . 1 1 1 . Largest Inventory Capacity 20 | . 15 15 15 15 20 Average Capacity 16 | . 13 15 15 15 18 Most Carried 18 | . 15 15 15 15 18 Average Carried 13 | . 10 14 14 15 14 Final Capacity 20 | 8 15 15 15 15 20 Final Carried 15 | 6 15 15 15 15 7 Class Distribution -------------------- 100% | Mutant Dominant Class ---------------- Mutant | -10/Materials Mutant | -10/Mines Mutant | -9/Materials Mutant | -9/Mines Mutant | -9/Exiles Resources | -11 -10 -10 -9 -9 -9 ----------- Run | Yrd Mat Min Mat Min Exi Matter Collected 1421 | 200 270 193 353 88 317 Remotely . | . . . . . . Salvage Created 1166 | . 402 193 433 100 38 Parts 62 | . 15 10 29 8 . Haulers Intercepted 4 | . 2 . 2 . . Recyclers Shooed 2 | . . . 2 . . Parts Field Recycled . | . . . . . . Retrieved Matter . | . . . . . . Parts Self-Destructed . | . . . . . . Prevented . | . . . . . . Kills | -11 -10 -10 -9 -9 -9 ------- Run | Yrd Mat Min Mat Min Exi Combat Hostiles Destroyed 22 | . 6 4 7 2 3 Guns 22 | . 6 4 7 2 3 Classes Destroyed 8 | . 3 1 2 1 1 Worker 2 | . 1 . 1 . . Builder 1 | . . . . 1 . Tunneler 1 | . . 1 . . . Hauler 4 | . 2 . 2 . . Recycler 1 | . . . 1 . . Swarmer 3 | . . . 3 . . Grunt 16 | . 6 4 4 2 . Assembled 3 | . . . . . 3 Best Kill Streak 5 | . 5 2 4 1 3 Combat Bots Only 4 | . 4 2 3 1 3 Max Kills in Single Turn 2 | . 2 1 1 1 1 Gunslinging . | . . . . . . Exploded . | . . . . . . Melee . | . . . . . . Uniques/NPCs Destroyed . | . . . . . . Combat | -11 -10 -10 -9 -9 -9 -------- Run | Yrd Mat Min Mat Min Exi Hostile Shots Fired 201 | . 35 34 22 6 104 Missed 45 | . 5 10 6 2 22 Damage Taken 2491 | . 378 322 176 65 1550 Core 331 | . 120 61 9 15 126 Absorbed by Shields . | . . . . . . Core Remaining (%) 63 | 100 . 27 . . . Volleys Fired 138 | . 30 21 32 8 47 Largest 2 | . 2 2 2 2 2 Hottest 46 | . 46 46 46 46 46 Shots Fired 255 | . 60 42 64 17 72 Gun 254 | . 60 42 64 17 71 Cannon . | . . . . . . Launcher 1 | . . . . . 1 Special . | . . . . . . Kinetic 254 | . 60 42 64 17 71 Thermal . | . . . . . . Explosive 1 | . . . . . 1 Electromagnetic . | . . . . . . Robot Hit Streak 13 | . 11 7 13 4 10 Robot Miss Streak 5 | . 2 2 3 3 5 Penetration Max . | . . . . . . Secondary Targets 2 | . . . 1 . 1 Max Gunslinging Chain 1 | . . . 1 . 1 Shots Hit Robots 171 | . 42 26 46 9 48 Core Hits 65 | . 17 9 21 5 13 Critical Kills 1 | . . . 1 . . Critical Parts Destroyed . | . . . . . . Critical Strikes 2 | . . . 1 . 1 Destroy 2 | . . . 1 . 1 Melee Attacks . | . . . . . . Impact . | . . . . . . Slashing . | . . . . . . Piercing . | . . . . . . Sneak Attacks . | . . . . . . Combat Hostiles . | . . . . . . Follow-up Attacks . | . . . . . . Damage Inflicted 2559 | . 592 388 683 135 761 Guns 2543 | . 592 388 683 135 745 Cannons . | . . . . . . Explosions . | . . . . . . Melee . | . . . . . . Ramming 16 | . . . . . 16 Kinetic 2543 | . 592 388 683 135 745 Thermal . | . . . . . . Explosive . | . . . . . . Electromagnetic . | . . . . . . Impact . | . . . . . . Slashing . | . . . . . . Piercing . | . . . . . . Highest Corruption 1 | . . . 1 1 1 Average Corruption 1 | . . . 1 1 1 Corruption Purged . | . . . . . . Corruption Blocked . | . . . . . . Effects 14 | . . . 1 4 9 Message Errors 4 | . . . . . 4 Matter Fused 2 | . . . . 2 . Energy Discharges 1 | . . . . . 1 Parts Rejected 1 | . . . . . 1 Data Loss (minor) 5 | . . . 1 1 3 Misfires 1 | . . . . 1 . Overload Shots . | . . . . . . Overflow Damage . | . . . . . . Projectiles . | . . . . . . Explosions . | . . . . . . Melee . | . . . . . . Knockbacks . | . . . . . . Impact . | . . . . . . Kinetic . | . . . . . . Secondary . | . . . . . . Self-Inflicted Damage . | . . . . . . Shots . | . . . . . . Rammed 8 | . . . . . 8 Targets Rammed 8 | . . . . . 8 Kicked . | . . . . . . Crushed . | . . . . . . Highest Temperature 321 | . 32 321 95 1 11 Average Temperature 82 | . 9 154 40 1 11 Received Heat Transfer 534 | . 234 180 66 54 . Effects 1 | . . 1 . . . Short Circuit 1 | . . 1 . . . Siege Activations . | . . . . . . Robots Corrupted . | . . . . . . Combat Hostiles . | . . . . . . Parts Fried . | . . . . . . Impact Corruptions . | . . . . . . Robots Melted . | . . . . . . Combat Hostiles . | . . . . . . Parts Melted . | . . . . . . Heat Transferred . | . . . . . . Parts Sabotaged . | . . . . . . Parts Stolen . | . . . . . . Parts Stripped . | . . . . . . Power Chain Reactions . | . . . . . . Alert | -11 -10 -10 -9 -9 -9 ------- Run | Yrd Mat Min Mat Min Exi Peak Influence 458 | . 114 135 458 243 . Initial 178 | . . 30 . 178 . Average 119 | . 56 117 194 202 . Maximum Alert Level 2 | . . . 2 1 . Low Security (%) 83 | . 100 100 54 47 . Level 1 13 | . . . 29 52 . Level 2 2 | . . . 15 . . Level 3 . | . . . . . . Level 4 . | . . . . . . Level 5 . | . . . . . . High Security . | . . . . . . Max Security . | . . . . . . Squads Dispatched 4 | . . 1 3 . . Investigation 1 | . . . 1 . . Extermination . | . . . . . . Reinforcement 2 | . . . 2 . . Assault 1 | . . 1 . . . Garrison . | . . . . . . Intercept . | . . . . . . Searches Triggered . | . . . . . . Construction Impeded . | . . . . . . Haulers Reinforced . | . . . . . . Active Scanning Responses . | . . . . . . Cargo Convoy Interrupts . | . . . . . . Stealth | -11 -10 -10 -9 -9 -9 --------- Run | Yrd Mat Min Mat Min Exi Distress Signals 1 | . 1 . . . . Communications Jammed . | . . . . . . Distress Signals . | . . . . . . Times Spotted 41 | . 13 4 15 3 6 Peak Tracking Total 9 | . 5 2 4 2 9 Tactical Retreats 2 | . . . . 1 1 Traps | -11 -10 -10 -9 -9 -9 ------- Run | Yrd Mat Min Mat Min Exi Traps Triggered . | . . . . . . Indirectly . | . . . . . . Trap Hack Attempts . | . . . . . . Triggered . | . . . . . . Disarmed . | . . . . . . Reprogrammed . | . . . . . . Reused 3 | . . . . . 3 Traps Extracted . | . . . . . . Installed 3 | . . . . . 3 Triggered . | . . . . . . Most Traps Carried 3 | . . 3 3 3 3 Machines | -11 -10 -10 -9 -9 -9 ---------- Run | Yrd Mat Min Mat Min Exi Machines Disabled 7 | . . . 2 . 5 Max in Single Turn 1 | . . . 1 . 1 Machines Repaired . | . . . . . . Machines Dismantled . | . . . . . . Machines Sabotaged . | . . . . . . Overloaded Fab Kills . | . . . . . . Hacking | -11 -10 -10 -9 -9 -9 --------- Run | Yrd Mat Min Mat Min Exi Machines Accessed 10 | . 2 1 5 . 2 Terminals 6 | . 2 . 4 . . Fabricators . | . . . . . . Repair Stations . | . . . . . . Recycling Units . | . . . . . . Scanalyzers 1 | . . . 1 . . Garrison Access . | . . . . . . Total Hacks 31 | . 10 1 18 . 2 Successful 12 | . 2 1 7 . 2 Failed 19 | . 8 . 11 . . Catastrophic 4 | . 1 . 3 . . Database Lockouts . | . . . . . . Manual 21 | . 8 . 12 . 1 Terminals 22 | . 10 . 12 . . Fabricators . | . . . . . . Repair Stations . | . . . . . . Recycling Units . | . . . . . . Scanalyzers 6 | . . . 6 . . Garrison Access . | . . . . . . Terminal Hacks 4 | . 1 1 . . 2 Record 1 | . . . . . 1 Open Door 1 | . . 1 . . . Branch Access Points 1 | . 1 . . . . Derelict Proto ID Bank 1 | . . . . . 1 Fabricator Hacks . | . . . . . . Repair Station Hacks . | . . . . . . Recycling Unit Hacks . | . . . . . . Scanalyzer 6 | . . . 6 . . Insert Component 3 | . . . 3 . . Analyze 3 | . . . 3 . . Garrison Access Hacks . | . . . . . . Unauthorized Hacks 2 | . 1 . 1 . . Terminals 2 | . 1 . 1 . . Botnet 2 | . 1 . 1 . . Fabricators . | . . . . . . Repair Stations . | . . . . . . Recycling Units . | . . . . . . Scanalyzers . | . . . . . . Garrison Access . | . . . . . . Data Cores Recovered . | . . . . . . Used . | . . . . . . Hacking Detections 7 | . 2 . 5 . . Full Trace Events 1 | . . . 1 . . Feedback Events 1 | . . . 1 . . Corruption 1 | . . . 1 . . Feedback Blocked . | . . . . . . Robot Schematics Acquired . | . . . . . . Robots Built . | . . . . . . Authchips . | . . . . . . Time . | . . . . . . Total Robot Build Rating . | . . . . . . Part Schematics Acquired 2 | . . . 2 . . Parts Built . | . . . . . . Authchips . | . . . . . . Time . | . . . . . . Total Part Build Rating . | . . . . . . Parts Repaired . | . . . . . . Time . | . . . . . . Parts Recycled . | . . . . . . Recycled Matter . | . . . . . . Retrieved Matter . | . . . . . . Retrieved Components . | . . . . . . Parts Scanalyzed 3 | . . . 3 . . Part Schematics Acquired 2 | . . . 2 . . Parts Damaged . | . . . . . . Bothacking | -11 -10 -10 -9 -9 -9 ------------ Run | Yrd Mat Min Mat Min Exi Used RIF Installer . | . . . . . . Robots Hacked . | . . . . . . Non-combat . | . . . . . . Combat . | . . . . . . Robot Hacks Applied . | . . . . . . Relay Couplers Released . | . . . . . . Fabnet Peak Effective % . | . . . . . . Robots Rewired . | . . . . . . Allies Hacked . | . . . . . . Hacks Repelled . | . . . . . . Allies | -11 -10 -10 -9 -9 -9 -------- Run | Yrd Mat Min Mat Min Exi Total Allies 1 | . . 1 . . . Largest Group 1 | . . 1 1 1 . Highest-Rated Group 31 | . . 31 31 31 . Highest-Rated Ally 31 | . . 31 31 31 . Total Orders . | . . . . . . Ally Attacks 25 | . . . 22 3 . Total Damage 335 | . . . 313 22 . Kills 6 | . . . 6 . . Allies Corrupted . | . . . . . . Allies Melted . | . . . . . . Intel | -11 -10 -10 -9 -9 -9 ------- Run | Yrd Mat Min Mat Min Exi Robot Analysis Total . | . . . . . . Derelict Logs Recovered 2 | . . 1 . 1 . Drone Launches . | . . . . . . Drone Recoveries . | . . . . . . Exploration | -11 -10 -10 -9 -9 -9 ------------- Run | Yrd Mat Min Mat Min Exi Turns Passed 2730 | . 652 413 302 232 1131 Spaces Moved 1780 | 1 329 319 196 196 739 Core . | . . . . . . Treads 380 | . 113 . . . 267 Legs 217 | 1 216 . . . . Wheels 1183 | . . 319 196 196 472 Hover . | . . . . . . Flight . | . . . . . . Fastest Speed 105 | 120 120 105 105 105 105 Average Speed 123 | 120 159 105 105 105 125 Slowest Speed 240 | 120 240 105 105 105 160 Overloaded Moves . | . . . . . . Propulsion Burnouts . | . . . . . . Robots Hopped . | . . . . . . Cave-ins Triggered . | . . . . . . Exploration Rate (%) 42 | 2 51 65 24 41 69 Regions Visited 5 Branch Regions 3 Pre-discovered Areas 2 | . . 1 . . 1 Known Exits Taken 1 | . 1 . . . . Unknown Exits Taken 4 | 1 . 1 1 1 . Scrap Searched . | . . . . . . Spaces Dug . | . . . . . . Terrain Destroyed 4 | . . . . . 4 Melee . | . . . . . . Projectile . | . . . . . . AOE 4 | . . . . . 4 Terrain Rammed . | . . . . . . Walls Destroyed . | . . . . . . Machines Disabled . | . . . . . . Actions | -11 -10 -10 -9 -9 -9 --------- Run | Yrd Mat Min Mat Min Exi Total 2089 | . 401 366 242 210 870 Wait 50 | . 5 6 . 5 34 Move 1775 | . 328 318 195 195 739 Hop . | . . . . . . Pick Up 36 | . 16 6 4 1 9 Fast Attach 9 | . 5 2 2 . . Attach 14 | . 2 2 3 . 7 Detach 2 | . . 1 1 . . Swap 18 | . 3 2 1 . 12 Drop 36 | . 12 8 4 1 11 Fire 138 | . 30 21 32 8 47 Melee . | . . . . . . Ram . | . . . . . . Kick . | . . . . . . Crush 8 | . . . . . 8 Escape Stasis . | . . . . . . Rewire . | . . . . . . Trap 3 | . . . . . 3 Miscellaneous . | . . . . . . Route ------- -11/Scrapyard -10/Materials (discovered 3 exits: *Mat / *Min x2) -10/Mines (discovered 2 exits: *Mat x2) -9/Materials -9/Mines (discovered 2 exits: [*Mat] / *Exi) -9/Exiles History --------- Turn | Location | Event 1 | -11/Scrapyard | Discovered new exit (range 0) 1 | -11/Scrapyard | Entered Materials 10 | -10/Materials | Identified exit to Mines 135 | -10/Materials | Discovered new exit (range 15) 316 | -10/Materials | Build established: Mutant 653 | -10/Materials | Entered Mines 666 | -10/Mines | Core integrity fell below 50% 786 | -10/Mines | Found the Drone Emporium 789 | -10/Mines | Found Prototype Device 789 | -10/Mines | Identified Sensor Drone Bay 1010 | -10/Mines | Discovered new exit (range 7) 1034 | -10/Mines | Found a hidden stash of uninstalled traps 1057 | -10/Mines | Discovered new exit (range 11) 1061 | -10/Mines | Met a Derelict testing a Signal Generator 1066 | -10/Mines | Entered Materials 1066 | -9/Materials | Accompanied by 1 ally 1066 | -9/Materials | Evolved 2 slots: Propulsion x1, Utility x1 1070 | -9/Materials | Discovered new exit (range 7) 1368 | -9/Materials | Entered Mines 1368 | -9/Mines | Accompanied by 1 ally 1393 | -9/Mines | Received a Rocket Launcher from a helpful Derelict 1429 | -9/Mines | Discovered new exit (range 6) 1581 | -9/Mines | Learned Materials garrison access intel 1588 | -9/Mines | Deemed a non-threat by the Exiles lab entrance 1589 | -9/Mines | Discovered new exit (range 5) 1600 | -9/Mines | Entered Exiles 1625 | -9/Exiles | Met 8R-AWN 1644 | -9/Exiles | Met EX-HEX 1672 | -9/Exiles | Met EX-BIN 1687 | -9/Exiles | Aligned with FarCom system 1688 | -9/Exiles | Given EX-Vault access code 1717 | -9/Exiles | Opened EX-Vault 1744 | -9/Exiles | Warned to stay clear of 0b10 Research branches 1778 | -9/Exiles | Met EX-DEC 1788 | -9/Exiles | Learned location of Zion (-6) 2480 | -9/Exiles | Attacked by the Exiles 2716 | -9/Exiles | Lost 11 parts (5n3u3w) 2731 | -9/Exiles | Self-destructed Last Messages --------------- 02685_ Hrd. Light Armor Plating destroyed. 02685_ HV Slug penetrates Earth. 02689_ Penetrated by HV Slug. 02689_ HV Slug penetrates Wall. 02689_ HV Slug penetrates Earth. 02693_ Penetrated by HV Slug. 02693_ HV Slug penetrates Wall. 02697_ Acquired Prototype Leg. 02698_ Penetrated by HV Slug. 02698_ HV Slug penetrates Wall. 02698_ Penetrated by HV Slug. 02698_ HV Slug penetrates Wall. 02699_ Acquired Prototype Device. 02702_ HV Slug penetrates Wall. 02705_ Acquired 15 matter. 02708_ Acquired 9 matter. 02727_ Arm. Wheel destroyed. 02727_ Knocked back. 02728_ Hvy. Ion Engine destroyed. 02730_ Arm. Wheel destroyed. Map ----- +----------------------------------------------------+ | ??????????????????????#""X" #????????????? | | ??????????????????????#" #????????????? | | ??????????????????????#" ## #????????????? | | ??????????????????????#""""""?# #?#########??? | | ??????????????????????##"###??# #?#"""""""#??? | | ??????????????????????? ??????# #?#"""""""#??? | | ??????????????????????????????# #?#"""""""#??? | | ?????????????????????????????## ###"" """"#??? | | ####?????????????????????????#" """"#??? | | "#?????????????????????????#" """#??? | | #?????????????????????????#" """#??? | | "#?????????????????????????#" """#??? | | ""#????????????#####????????#" """#??? | | ""#???????????? """#???????#" """#??? | | ""#????????????" """#???????## """"??? | | ###???????????"" #????????# """#??? | | #????????????#"" #????????#" "X" """"??? | | ##???????????#"" "#????????#" """ #??? | | ###?????????? ""?????????#" """""""""#??? | | ""####????????" "?????????##" ###########??? | | "# #????????# #????????##"" #????????????? | | "#####???### ###?######"" #????????????? | | """#####X# #"###""""""" ##???????????? | | """""" " "" ##???######## | | # "" """% " #####""""""" | | ## % " "@ " """ " | | ?##" % % "" | | ??#""" % " | | ??##### | | ??????# | | ??????### | | ????????# """""" | | ???????# ######""" | | ???????# " ""##????#####""" | | ??????##""" """##?????????##""" | | ??????#""" """##???????????#"""" | | ??????#""" ""#????????????#"" | | ??????#"" ########???###"""" | | ??????#""" ## ####""" | | ??????#"" """" | | ??????##"" | | ???????#"""" | | ???????## " | | ????????#" " "" """ | | ????????#"""" ""## ##""" " " ""#" | | ????????#"" ""#### #??###""" """##" | | ????????#" """"##??# #??????#"""???## | | ????????#""" """#??## ####???##??????? | | ????????## ""##??#! "!#???????????? | | ?????????#"" """##???#" !#???????????? | +----------------------------------------------------+ Best States ------------- Heat Dissipation 42 Energy Generation 14 Energy Capacity 280 Matter Stores 300 Matter Capacity 300 Sight Range 16 Terrain Scan Density 10 Armor Coverage 300 Evasion (%) 55 Targeting Accuracy 6 Recoil Reduction 3 Item Schematics ----------------- Lgt. Treads | -9/Materials | Scanalyzed Grenade Launcher | -9/Materials | Scanalyzed Robot Schematics ------------------ None Fabricated ------------ Nothing Alien Tech Used ----------------- None Achievements -------------- None Challenges ------------ None Game ------ Seed DecoyGrapheneProjector Manual? 0 Play Time 00:16:00 Cumulative 420.9 hours Start 2024.08.05 @ 16:47:35 End 2024.08.05 @ 17:03:37 Sessions 1 Manual Loads 0 Difficulty Rogue Special Mode None Game No. 428 Rogue 428 Adventurer 0 Explorer 0 Win Type - Total 30 Types 16/3/5/1/2/0/3/0/0 Lore% 82 Gallery% 87 Achievement% 82 Wizard Run 0 Options --------- Layout 0 ASCII 0 Keyboard 0 Movement Arrows Keybinds 0 Fullscreen 2 Font 24/Smallcaps Map View 76x50 Zoom Use 0% Tactical HUD 1 Map Filters NONE Filters NONE Steam 1 RUN: 58f46100-f882-44ea-85b2-9538b3b9ff52